Cogmind - Beta 9 @@@ ROGUE MODE // 2019.10.23 @ 03:55:48 Player: Finestep Result: Self-destructed Performance ------------- Evolutions (6) 3000 Regions Visited (16) 3200 Robots Destroyed (523) 2615 Value Destroyed (18821) 18821 Prototype IDs (38) 760 Alien Tech Used (0) 0 Bonus (6461) 6461 TOTAL SCORE: 34857 Bonus ------- Triggered High Security 500 High Alert Combat Kills 5637 Follower Combat Kills 1523 Network Hubs Disabled 200 Built Enhanced Grunts 300 A7 Reached Mainframe 300 Friendly Fire -1999 Cogmind --------- Core Integrity 808/1150 Matter 116/300 Energy 4/100 System Corruption 13% Temperature Cool (0) Location -4/Factory Parts ------- Power (1) Propulsion (4) Medium Treads Medium Treads Utility (12) Large Storage Unit Large Storage Unit High-capacity Storage Unit Advanced Visual Processing Unit Improved Target Analyzer Improved Core Analyzer Advanced Transmission Jammer Improved Hacking Suite System Restoration Module Weapon (2) Light Antimatter Cannon Inventory (24) Light Antimatter Reactor Light Quantum Reactor Medium Treads Medium Treads Heavy Siege Treads Power Amplifier Power Amplifier Advanced Particle Charger Layered Medium Armor Plating Improved Force Field Improved Component Analysis Suite Improved Lightning Gun Long-range Proton Cannon Heavy Neutron Cannon Heavy Gauss Cannon Light Antimatter Cannon Light Antimatter Cannon Heavy Shock Bomb Launcher Heavy Shock Bomb Launcher Great Axe Lance Peak State ------------ Power Antimatter Reactor Propulsion Improved Heavy Treads Heavy Siege Treads Utility Advanced Power Amplifier Large Storage Unit Large Storage Unit High-capacity Storage Unit Advanced Visual Processing Unit Improved Target Analyzer Improved Core Analyzer Advanced Transmission Jammer Layered Medium Armor Plating Layered Medium Armor Plating Improved Hacking Suite System Restoration Module Weapon Light Antimatter Cannon Light Antimatter Cannon Inventory Light Antimatter Reactor Light Quantum Reactor Medium Treads Medium Treads Medium Treads Medium Treads Heavy Siege Treads Power Amplifier Advanced Particle Charger Layered Medium Armor Plating Improved Force Field Improved Component Analysis Suite Improved Lightning Gun Long-range Proton Cannon HERF Cannon Heavy Neutron Cannon Heavy Gauss Cannon Light Antimatter Cannon Heavy Shock Bomb Launcher Heavy Shock Bomb Launcher Great Axe Lance [Rating: 116] Favorites ----------- Power Reinforced Deuterium Engine Engine Reinforced Deuterium Engine Power Core Micro Fission Core Reactor Antimatter Reactor Propulsion Medium Treads Treads Medium Treads Leg Flexi-carbon Leg Wheel Armored Huge Wheel Hover Unit Aerolev Unit Utility Large Storage Unit Device Improved Cooling System Storage Large Storage Unit Processor Advanced Targeting Computer Hackware Improved Hacking Suite Protection Layered Medium Armor Plating Weapon Gauss Cannon Energy Gun Improved EM Shotgun Energy Cannon Improved EM Pulse Cannon Ballistic Gun Improved KE Penetrator Ballistic Cannon Gauss Cannon Launcher Improved Proton Missile Launcher Special Weapon Mining Laser Slashing Weapon Axe Piercing Weapon Lance Build | -11 -10 -9 -9 -9 -7 -6 -6 -6 -6 -6 -6 -6 -5 -5 -5 -4 ------- Run | Scr Mat Mat Sto Rec Fac Fac Was Fac Ext Cet Arc Hub Fac Was Fac Fac Slots Evolved 12 | . . 2 . . 4 2 . . . . . . 2 . . 2 Power . | . . . . . . . . . . . . . . . . . Propulsion 2 | . . . . . 1 1 . . . . . . . . . . Utility 10 | . . 2 . . 3 1 . . . . . . 2 . . 2 Weapon . | . . . . . . . . . . . . . . . . . Parts Attached 582 | 6 21 43 6 4 61 7 6 64 85 38 17 11 63 9 54 87 Power 51 | 1 1 5 . . 6 . 1 2 11 7 1 2 6 1 2 5 Engine 21 | 1 1 5 . . 4 . 1 . 9 . . . . . . . Core 11 | . . . . . 2 . . 2 . . 1 1 2 . 2 1 Reactor 19 | . . . . . . . . . 2 7 . 1 4 1 . 4 Propulsion 107 | 2 6 14 2 . 13 2 . 7 28 2 8 2 5 2 4 10 Treads 77 | . 1 10 2 . 9 1 . 4 20 2 7 2 4 1 4 10 Leg 10 | . 2 . . . . . . . 8 . . . . . . . Wheel 18 | 2 3 4 . . 3 1 . 2 . . 1 . 1 1 . . Hover 2 | . . . . . 1 . . 1 . . . . . . . . Flight . | . . . . . . . . . . . . . . . . . Utility 203 | 1 8 5 1 . 22 3 3 27 20 7 1 5 21 5 28 46 Device 87 | . . . . . 6 1 1 17 8 2 1 . 7 2 15 27 Storage 30 | 1 8 4 . . 1 . . . 9 1 . . 2 . 3 1 Processor 20 | . . . . . 4 . . 3 2 . . . 3 . 4 4 Hackware 4 | . . . . . . 1 . . . . . . . . 3 . Protection 62 | . . 1 1 . 11 1 2 7 1 4 . 5 9 3 3 14 Artifact . | . . . . . . . . . . . . . . . . . Weapon 221 | 2 6 19 3 4 20 2 2 28 26 22 7 2 31 1 20 26 Energy Gun 47 | . . 6 . 3 7 . . 2 2 9 2 . 4 . 7 5 Energy Cannon 50 | . . 3 1 . 3 . . 3 15 1 2 . 4 1 9 8 Ballistic Gun 64 | 2 5 9 1 . 1 . . 13 3 4 3 2 16 . 1 4 Ballistic Cannon 23 | . . 1 1 . 8 2 2 2 . . . . 1 . 1 5 Launcher 16 | . . . . . 1 . . 1 5 4 . . 4 . . 1 Special Weapon 3 | . 1 . . 1 . . . . . 1 . . . . . . Impact Weapon . | . . . . . . . . . . . . . . . . . Slashing Weapon 4 | . . . . . . . . 1 1 . . . 1 . . 1 Piercing Weapon 14 | . . . . . . . . 6 . 3 . . 1 . 2 2 Special Melee Weapon . | . . . . . . . . . . . . . . . . . Unidentified Prototypes 23 | . . 1 . . 4 . . 6 . 7 . . . . 1 4 Parts Lost 98 | . 2 12 1 . 13 . . 5 14 2 . . 14 6 6 23 Power 11 | . . 1 . . . . . 1 3 . . . 3 . 1 2 Propulsion 25 | . 2 4 . . 3 . . 1 5 1 . . 3 1 . 5 Utility 36 | . . . 1 . 5 . . 3 3 1 . . 6 5 1 11 Weapon 26 | . . 7 . . 5 . . . 3 . . . 2 . 4 5 Highest Loss Streak 6 | . 1 3 1 . 4 . . 1 3 1 . . 4 6 2 6 Average Slot Usage (%) 92 | . 98 98 100 100 95 90 93 86 97 93 92 93 91 66 86 87 Engine 3 | . 14 10 11 11 6 6 6 1 3 . . . . . . . Core 1 | . . . . . . . . 3 2 . 5 . . . 4 1 Reactor 1 | . . . . . . . . . . 5 . 5 4 2 . 3 Treads 12 | . . 9 22 22 12 13 13 7 19 20 16 13 9 5 6 10 Wheel 4 | . 18 11 . . 4 5 6 5 1 . 2 6 4 5 3 . Device 6 | . . . . . 5 8 6 7 7 . 6 . 9 2 13 12 Storage 22 | . 27 43 33 33 23 20 20 19 21 25 26 20 19 20 14 15 Processor 13 | . . . . . 14 13 13 15 20 19 13 13 17 14 14 19 Hackware 1 | . . . . . . 3 4 . . . . . . . 11 5 Protection 6 | . . . 11 11 8 6 8 8 2 6 6 19 10 5 . 6 Energy Gun 2 | . . 6 . 21 2 . . . . 6 . . . . 4 2 Energy Cannon 3 | . . . 3 . 1 . . . 11 . 4 . 1 . 3 2 Ballistic Gun 4 | . 27 14 15 . . . . 5 . 1 8 12 8 5 . 1 Ballistic Cannon 2 | . . . 3 . 9 11 13 5 . . . . . . . 2 Naked Turns . | . . . . . . . . . . . . . . . . . Heaviest Build 125 | 12 54 92 88 88 103 100 106 106 101 115 108 114 125 112 98 116 Greatest Support 145 | 26 32 40 40 40 62 28 28 70 118 136 136 51 28 70 140 145 Greatest Overweight (x) 8 | . 3 8 2 2 8 3 3 3 3 . 3 4 4 3 3 . Average Overweight (x) 1 | . 1 2 1 2 3 3 3 2 . . 1 3 3 1 2 . Largest Inventory Capacity 30 | 6 18 30 24 24 24 24 24 24 24 24 24 24 24 24 24 24 Average Capacity 23 | 5 14 29 24 24 24 24 24 23 21 24 24 24 24 21 20 24 Most Carried 30 | 6 18 30 24 24 24 20 24 24 24 24 24 24 24 24 24 24 Average Carried 21 | 3 13 23 23 23 23 17 22 23 20 23 23 23 22 20 16 22 Final Capacity 24 | . . . . . . . . . . . . . . . . 24 Final Carried 22 | . . . . . . . . . . . . . . . . 22 Class Distribution -------------------- 43% | Hauler-Mutant 43% | Scavenger-Mutant 6% | Hacker-Mutant 5% | Mutant Dominant Class ---------------- Scavenger-Mutant | -10/Materials Hauler-Mutant | -9/Materials Hauler-Mutant | -9/Storage Hauler-Mutant | -9/Recycling Hauler-Mutant | -7/Factory Hauler-Mutant | -6/Factory Hauler-Mutant | -6/Waste Hauler-Mutant | -6/Factory Scavenger-Mutant | -6/Extension Scavenger-Mutant | -6/Cetus Scavenger-Mutant | -6/Archives Scavenger-Mutant | -6/Hub_04(d) Scavenger-Mutant | -5/Factory Scavenger-Mutant | -5/Waste Hacker-Mutant | -5/Factory Hauler-Mutant | -4/Factory Resources | -11 -10 -9 -9 -9 -7 -6 -6 -6 -6 -6 -6 -6 -5 -5 -5 -4 ----------- Run | Scr Mat Mat Sto Rec Fac Fac Was Fac Ext Cet Arc Hub Fac Was Fac Fac Matter Collected 14415 | 304 513 926 248 75 2293 175 80 2605 1474 479 284 425 1753 216 829 1736 Remotely 10 | . . . . . . . . . . . . . . . . 10 Salvage Created 25858 | 133 533 1919 558 951 3349 . . 3318 4370 628 158 858 4101 327 1696 2959 Parts 1064 | 7 39 112 34 44 159 . . 143 143 22 10 35 153 5 48 110 Haulers Intercepted 35 | . 2 5 2 . 5 . . 6 5 . . 3 2 . 1 4 Recyclers Shooed 48 | . 4 9 2 5 5 . . 13 1 . . . 4 . 2 3 Parts Field Recycled . | . . . . . . . . . . . . . . . . . Retrieved Matter . | . . . . . . . . . . . . . . . . . Parts Self-Destructed . | . . . . . . . . . . . . . . . . . Prevented . | . . . . . . . . . . . . . . . . . Kills | -11 -10 -9 -9 -9 -7 -6 -6 -6 -6 -6 -6 -6 -5 -5 -5 -4 ------- Run | Scr Mat Mat Sto Rec Fac Fac Was Fac Ext Cet Arc Hub Fac Was Fac Fac Combat Hostiles Destroyed 332 | . 10 28 10 11 56 . . 44 49 7 1 5 51 1 20 39 Melee 1 | . . . . 1 . . . . . . . . . . . . Guns 139 | . 10 28 9 7 5 . . 18 5 3 1 5 29 1 6 12 Cannons 128 | . . . 1 . 45 . . 22 25 . . . 9 . 10 16 AOE 26 | . . . . 3 5 . . 2 4 . . . 4 . 3 5 Classes Destroyed 21 | 2 4 5 . 1 4 . . . 2 . 1 . 1 1 . . Worker 33 | . . 7 . . 2 . . 5 1 . . 7 8 . 1 2 Builder 28 | . . 2 . 1 7 . . 3 4 . . 2 4 . 1 4 Tunneler 6 | 3 1 . . . . . . . 1 . . . 1 . . . Hauler 35 | . 2 5 2 . 5 . . 6 5 . . 3 2 . 1 4 Recycler 54 | 1 1 6 1 10 13 . . 7 5 . . . 3 . 3 4 Carrier 1 | . . . . . . . . . . . . . 1 . . . Mechanic 4 | . . . . . 1 . . . . . . . 2 . 1 . Operator 3 | . . . . . . . . . . . 2 . 1 . . . Drone 10 | . . . . 10 . . . . . . . . . . . . Watcher 25 | . 3 4 . . 4 . . 3 2 1 . 1 3 . . 4 Swarmer 44 | . 6 6 4 . 7 . . 8 4 . . . . . 4 5 Grunt 160 | . 4 14 2 1 28 . . 22 29 2 . 4 30 . 10 14 Brawler 14 | . . 2 . . 7 . . . 1 1 . . 2 . 1 . Duelist 10 | . . 1 . . 2 . . 1 2 . . . 2 . 1 1 Protector 2 | . . . . . 1 . . . . . . . . . 1 . Sentry 32 | . . 5 4 . 4 . . 3 8 . 1 1 2 . 1 3 Specialist 1 | . . . . . . . . . 1 . . . . . . . Hunter 12 | . . . . . 1 . . 3 1 . . . 5 . . 2 Programmer 41 | . . . . . 7 . . 7 1 . . . 10 . 2 14 Behemoth 2 | . . . . . . . . . 2 . . . . . . . Compactor 1 | . . . . . . . . . . . . . . 1 . . Cetus Guard 4 | . . . . . . . . . . 4 . . . . . . Best Kill Streak 19 | 2 5 10 4 6 10 . . 12 7 5 1 8 19 1 6 6 Combat Bots Only 10 | . 5 3 4 3 6 . . 5 6 4 1 3 10 1 4 5 Max Kills in Single Turn 5 | 1 1 4 1 4 2 . . 2 2 2 1 5 2 1 2 2 Gunslinging 1 | . . . . . . . . . . . . . . . . 1 Exploded 2 | . . . . 1 2 . . 2 1 . . . 1 . 2 2 Melee 1 | . . . . 1 . . . . . . . . . . . . Uniques/NPCs Destroyed 1 | . . . . . . . . . . 1 . . . . . . A7 (-6/Cetus) Combat | -11 -10 -9 -9 -9 -7 -6 -6 -6 -6 -6 -6 -6 -5 -5 -5 -4 -------- Run | Scr Mat Mat Sto Rec Fac Fac Was Fac Ext Cet Arc Hub Fac Was Fac Fac Damage Taken 28964 | . 422 1660 650 22 4538 . . 3136 2897 302 24 738 5143 393 1454 7585 Core 2502 | . 96 287 92 . 440 . . 144 397 73 . 129 377 50 75 342 Absorbed by Shields 408 | . . . . . 82 . . . 289 . . . . . . 37 Reduced by Siege Mode 889 | . . . . . . . . 77 . . . . 51 . 28 733 Core Remaining (%) 44 | 100 61 . . 5 37 . . . . . . 12 . . 49 . Volleys Fired 1409 | 11 85 165 56 43 214 . . 190 161 19 10 40 174 14 63 164 Largest 2 | 2 2 2 2 2 2 . . 2 2 2 2 2 2 2 2 2 Hottest 169 | 40 100 91 103 100 116 . . 150 150 120 120 68 138 68 167 169 Shots Fired 2611 | 22 168 312 111 85 397 . . 362 290 33 20 80 331 29 113 258 Gun 1563 | 22 166 310 99 84 55 . . 203 88 22 20 80 251 29 43 91 Cannon 1001 | . . 2 12 . 338 . . 155 192 1 . . 67 . 70 164 Launcher 43 | . . . . . 4 . . 4 10 9 . . 13 . . 3 Special 4 | . 2 . . 1 . . . . . 1 . . . . . . Kinetic 1817 | 22 166 212 105 . 309 . . 349 88 4 18 80 250 29 26 159 Thermal 212 | . 2 100 6 1 46 . . 7 . . . . . . 10 40 Explosive 4 | . . . . . 4 . . . . . . . . . . . Electromagnetic 577 | . . . . 84 38 . . 6 202 28 2 . 81 . 77 59 Robot Hit Streak 49 | 7 9 12 29 11 21 . . 32 49 12 14 13 23 10 11 19 Robot Miss Streak 11 | 3 4 11 2 7 7 . . 3 3 2 3 3 4 2 4 4 Penetration Max 1 | . . . . . 1 . . 1 . 1 1 1 1 . . 1 Secondary Targets 16 | . . . . . 2 . . 3 1 1 1 1 4 . 2 1 Max Gunslinging Chain 1 | . . . . . 1 . . 1 1 1 1 1 1 . 1 1 Shots Hit Robots 1834 | 13 108 205 79 48 252 . . 280 230 29 11 57 237 21 78 186 Core Hits 912 | 5 32 93 29 29 144 . . 124 105 22 7 33 131 8 52 98 Critical Hits 186 | . 1 5 1 1 39 . . 30 18 2 . 7 51 4 2 25 Critical Kills 56 | . . 1 . 1 13 . . 11 6 1 . 2 15 . 1 5 Critical Parts Destroyed 118 | . 1 4 1 . 24 . . 19 8 1 . 5 34 1 1 19 Melee Attacks 57 | . . . . . . . . 17 3 14 . . 1 . 15 7 Thermal 3 | . . . . . . . . . 3 . . . . . . . Impact . | . . . . . . . . . . . . . . . . . Slashing 2 | . . . . . . . . 2 . . . . . . . . Piercing 52 | . . . . . . . . 15 . 14 . . 1 . 15 7 Sneak Attacks 5 | . . . . . . . . 2 . . . . . . 3 . Combat Hostiles . | . . . . . . . . . . . . . . . . . Follow-up Attacks . | . . . . . . . . . . . . . . . . . Damage Inflicted 54176 | 140 1032 2670 706 1201 7740 . . 7786 7930 1481 275 2601 9813 532 2987 7282 Guns 22242 | 140 1032 2281 550 828 701 . . 3748 1693 457 275 1741 5673 532 811 1780 Cannons 22228 | . . 21 151 . 6180 . . 3203 4706 5 . . 1819 . 1476 4667 Explosions 8447 | . . 347 . 320 639 . . 446 1530 765 . 854 2321 . 411 814 Melee 873 | . . . . . . . . 330 . 254 . . . . 289 . Ramming 386 | . . 21 5 53 220 . . 59 1 . . 6 . . . 21 Kinetic 30444 | 140 1032 1547 618 . 5790 . . 6690 1693 120 230 1741 5874 532 734 3703 Thermal 5494 | . . 755 83 320 633 . . 195 752 . . . 624 . 451 1681 Explosive 1130 | . . 347 . . 611 . . . . . . . 172 . . . Electromagnetic 15849 | . . . . 828 486 . . 512 5484 1107 45 854 3143 . 1513 1877 Impact . | . . . . . . . . . . . . . . . . . Slashing . | . . . . . . . . . . . . . . . . . Piercing 873 | . . . . . . . . 330 . 254 . . . . 289 . Highest Corruption 23 | . . 7 7 7 7 . . 4 4 4 4 . 19 19 23 15 Average Corruption 6 | . . 4 7 7 4 . . 2 4 4 2 . 9 19 18 7 Corruption Purged 24 | . . . . . . . . . . . 4 . . . 13 7 Effects 692 | . . 29 24 51 92 . . 46 102 21 18 . 87 17 107 98 Message Errors 147 | . . 6 6 10 19 . . 11 27 5 6 . 17 5 15 20 Matter Fused 125 | . . 5 3 4 12 . . 9 33 2 5 . 11 2 19 20 Heat Flow Errors 51 | . . 3 2 6 9 . . 2 5 2 2 . 9 1 5 5 Energy Discharges 67 | . . 4 . 5 14 . . 3 5 5 4 . 9 1 9 8 Parts Rejected 2 | . . 1 . . . . . . . . . . 1 . . . Data Loss (minor) 78 | . . 3 3 8 9 . . 8 19 4 1 . 4 . 7 12 Data Loss (major) 14 | . . . . 2 1 . . . . . . . 4 . 4 3 Misfires 20 | . . 2 1 2 3 . . . . . . . 2 1 4 5 Alerts 7 | . . . . . . . . . . . . . 1 1 2 3 Misdirections 23 | . . . . . . . . . . . . . . 1 17 5 Targeting Errors 135 | . . 5 7 12 20 . . 11 9 3 . . 26 5 22 15 Weapon Failures 23 | . . . 2 2 5 . . 2 4 . . . 3 . 3 2 Overload Shots . | . . . . . . . . . . . . . . . . . Overflow Damage 1036 | . . 1 . 2 160 . . 210 79 . . 41 231 . 73 239 Projectiles 561 | . . . . . 130 . . 78 59 . . . 48 . 23 223 Explosions 320 | . . . . 2 3 . . 5 20 . . 41 183 . 50 16 Melee 155 | . . 1 . . 27 . . 127 . . . . . . . . Knockbacks 95 | . . 1 . . 41 . . 21 . . . . 2 . 3 27 Impact 2 | . . 1 . . 1 . . . . . . . . . . . Kinetic 83 | . . . . . 35 . . 19 . . . . 2 . 3 24 Secondary 10 | . . . . . 5 . . 2 . . . . . . . 3 Self-Inflicted Damage 1088 | . . 68 . . 96 . . . 195 . . 99 243 . 205 182 Shots 22 | . . 1 . . 2 . . . 3 . . 1 6 . 3 6 Rammed 45 | . . 1 1 5 24 . . 7 1 . . 1 . . . 5 Targets Rammed 48 | . . 1 1 6 26 . . 7 1 . . 1 . . . 5 Kicked . | . . . . . . . . . . . . . . . . . Crushed 3 | . . . . 1 2 . . . . . . . . . . . Highest Temperature 487 | . 20 278 200 256 373 . . 232 318 251 227 78 487 110 278 344 Average Temperature 68 | . 8 31 55 68 86 . . 32 69 82 81 26 133 70 86 82 Received Heat Transfer 6538 | . 120 480 189 12 1530 . . 861 659 9 9 150 1104 . 267 1148 Effects 10 | . . . . . 4 . . . 2 1 . . 1 . . 2 Shutdowns 1 | . . . . . . . . . . . . . 1 . . . Energy Bleed 1 | . . . . . . . . . . 1 . . . . . . Interference 7 | . . . . . 4 . . . 2 . . . . . . 1 Matter Decay 1 | . . . . . . . . . . . . . . . . 1 Siege Activations 23 | . . . . . . . . 8 . . . . 1 . 1 13 Total Turns 549 | . . . . . . . . 153 . . . . 21 . 20 355 Longest Duration 73 | . . . . . . . . 43 . . . . 21 . 20 73 Robots Corrupted 44 | . . . . . 1 . . 1 18 4 . 1 12 . 1 6 Combat Hostiles 37 | . . . . . 1 . . 1 15 4 . . 9 . 1 6 Parts Fried 116 | . . . . 2 4 . . 4 50 6 . 2 29 . 11 8 Impact Corruptions 4 | . . 1 . . 2 . . 1 . . . . . . . . Robots Melted 1 | . . . . . . . . 1 . . . . . . . . Combat Hostiles 1 | . . . . . . . . 1 . . . . . . . . Parts Melted 9 | . . 1 . 1 . . . 3 1 . . . . . . 3 Heat Transferred 6883 | . . 2036 148 400 1031 . . 300 650 . . . 475 . 425 1418 Parts Sabotaged 3 | . . . . . . . . . 3 . . . . . . . Parts Stolen . | . . . . . . . . . . . . . . . . . Parts Stripped . | . . . . . . . . . . . . . . . . . Power Chain Reactions 32 | . . . . 5 2 . . . 11 . . . 5 . 3 6 Missiles Intercepted . | . . . . . . . . . . . . . . . . . Alert | -11 -10 -9 -9 -9 -7 -6 -6 -6 -6 -6 -6 -6 -5 -5 -5 -4 ------- Run | Scr Mat Mat Sto Rec Fac Fac Was Fac Ext Cet Arc Hub Fac Was Fac Fac Peak Influence 2164 | 20 271 426 488 204 2164 1132 396 1105 672 849 538 715 1874 659 1026 1453 Average Influence 607 | 8 95 235 316 82 1315 1111 396 579 398 516 358 486 831 631 663 592 Maximum Alert Level 5 | . 1 2 2 1 5 4 1 4 2 3 2 3 5 2 3 4 Low Security (%) 13 | . . . . . . . . . . . . . . . . . Level 1 28 | . . . . . . . . . . . . . . . . . Level 2 28 | . . . . . . . . . . . . . . . . . Level 3 14 | . . . . . . . . . . . . . . . . . Level 4 7 | . . . . . . . . . . . . . . . . . Level 5 6 | . . . . . . . . . . . . . . . . . High Security . | . . . . . . . . . . . . . . . . . Max Security . | . . . . . . . . . . . . . . . . . Squads Dispatched 104 | . 1 2 2 1 23 1 . 21 12 . . 5 16 . 5 15 Investigation 27 | . 1 1 . . 4 . . 7 7 . . 1 3 . 2 1 Extermination 26 | . . . . . 6 1 . 5 . . . 1 5 . 1 7 Reinforcement 25 | . . 1 2 1 2 . . 6 1 . . 3 5 . . 4 Assault 25 | . . . . . 11 . . 2 4 . . . 3 . 2 3 Garrison 1 | . . . . . . . . 1 . . . . . . . . Intercept . | . . . . . . . . . . . . . . . . . Construction Impeded 8 | . . . . 1 1 . . 1 1 . . . 3 . . 1 Haulers Reinforced 8 | . . . . . . . . 5 . . . . 1 . . 2 Stealth | -11 -10 -9 -9 -9 -7 -6 -6 -6 -6 -6 -6 -6 -5 -5 -5 -4 --------- Run | Scr Mat Mat Sto Rec Fac Fac Was Fac Ext Cet Arc Hub Fac Was Fac Fac Distress Signals 17 | . . 1 . . 2 . . 1 4 1 . 1 3 . . 4 Communications Jammed 41 | . . . . . . . . . . . . . 3 . . 38 Distress Signals 41 | . . . . . . . . . . . . . 3 . . 38 Times Spotted 647 | . 19 38 19 40 125 . . 65 85 23 8 20 92 6 29 78 Peak Tracking Total 28 | . 6 5 5 4 28 1 . 6 5 6 1 6 8 5 6 7 Tactical Retreats 49 | . 3 1 2 . 7 . . 8 11 . . 1 5 . 3 8 Traps | -11 -10 -9 -9 -9 -7 -6 -6 -6 -6 -6 -6 -6 -5 -5 -5 -4 ------- Run | Scr Mat Mat Sto Rec Fac Fac Was Fac Ext Cet Arc Hub Fac Was Fac Fac Traps Triggered 18 | . 1 2 . . 1 1 . 4 2 . . . 3 . 2 2 Indirectly 3 | . . . . . . . . . 1 . . . 1 . . 1 Trap Hack Attempts . | . . . . . . . . . . . . . . . . . Triggered . | . . . . . . . . . . . . . . . . . Disarmed . | . . . . . . . . . . . . . . . . . Reprogrammed 4 | . . . . . . . . . . . . . 4 . . . Reused 2 | . . . . . . . . . . . . . 2 . . . Traps Extracted . | . . . . . . . . . . . . . . . . . Installed . | . . . . . . . . . . . . . . . . . Triggered 2 | . . . . . . . . . . . . . 2 . . . Machines | -11 -10 -9 -9 -9 -7 -6 -6 -6 -6 -6 -6 -6 -5 -5 -5 -4 ---------- Run | Scr Mat Mat Sto Rec Fac Fac Was Fac Ext Cet Arc Hub Fac Was Fac Fac Machines Disabled 80 | . 1 1 . 1 6 . . 2 4 6 4 10 36 . 7 2 Max in Single Turn 9 | . 1 1 . 1 2 . . 1 1 2 3 8 9 . 2 1 Garrison Access 2 | . . . . . . . . . . . . 1 . . 1 . Network Hub 1 | . . . . . . . . . . . . 1 . . . . Energy Cycler 1 | . . . . . . . . . 1 . . . . . . . Machines Sabotaged . | . . . . . . . . . . . . . . . . . Garrisons Compromised . | . . . . . . . . . . . . . . . . . Overloaded Fab Kills . | . . . . . . . . . . . . . . . . . Fab Network Shutdowns 1 | . . . . . . . . . . . . . . . . 1 Hacking | -11 -10 -9 -9 -9 -7 -6 -6 -6 -6 -6 -6 -6 -5 -5 -5 -4 --------- Run | Scr Mat Mat Sto Rec Fac Fac Was Fac Ext Cet Arc Hub Fac Was Fac Fac Machines Accessed 100 | . 9 7 2 9 9 2 . 16 16 3 . 5 9 . 7 6 Terminals 74 | . 8 6 2 6 5 . . 12 15 3 . 4 7 . 3 3 Fabricators 7 | . . . . . 2 . . 1 . . . . . . 2 2 Repair Stations 7 | . . . . . . 2 . 1 1 . . . 1 . 1 1 Recycling Units 9 | . 1 1 . 3 2 . . 1 . . . . 1 . . . Scanalyzers 1 | . . . . . . . . 1 . . . . . . . . Garrison Access 2 | . . . . . . . . . . . . 1 . . 1 . Total Hacks 349 | . 35 18 6 34 21 5 . 49 47 8 . 20 48 . 36 22 Successful 177 | . 22 9 3 18 11 4 . 22 25 5 . 11 21 . 16 10 Failed 172 | . 13 9 3 16 10 1 . 27 22 3 . 9 27 . 20 12 Catastrophic 30 | . 1 1 . 3 3 . . 4 5 . . 1 5 . 5 2 Database Lockouts . | . . . . . . . . . . . . . . . . . Manual 142 | . 17 8 3 12 5 . . 16 26 9 . 10 17 . 16 3 Terminals 276 | . 33 16 6 26 9 . . 40 45 8 . 17 43 . 22 11 Fabricators 25 | . . . . . 6 . . 2 . . . . . . 10 7 Repair Stations 17 | . . . . . . 5 . 1 2 . . . 3 . 2 4 Recycling Units 22 | . 2 2 . 8 6 . . 2 . . . . 2 . . . Scanalyzers 4 | . . . . . . . . 4 . . . . . . . . Garrison Access 5 | . . . . . . . . . . . . 3 . . 2 . Terminal Hacks 92 | . 12 5 3 12 2 . . 13 14 2 . 7 12 . 7 3 Record 2 | . . . . . . . . . . 2 . . . . . . Part Schematic 5 | . . . . 1 . . . 2 . . . . 2 . . . Robot Schematic 2 | . . . . . . . . . 1 . . . 1 . . . Robot Analysis 5 | . 2 . 2 . . . . . 1 . . . . . . . Prototype ID Bank 6 | . 2 1 . . . . . 1 1 . . . . . 1 . Open Door 5 | . . . . . . . . . 5 . . . . . . . Level Access Points 1 | . . . . . . . . . . . . . . . . 1 Branch Access Points 7 | . 1 . 1 . 1 . . 1 . . . 1 1 . 1 . Machine Index 1 | . . . . . . . . . . . . . . . 1 . Terminal Index 4 | . . . . 1 . . . 1 . . . 1 1 . . . Fabricator Index 2 | . . . . . . . . 1 . . . . . . 1 . Garrison Index 2 | . . . . . . . . 1 . . . . . . . 1 Alert Level 8 | . . 2 . 2 . . . 1 . . . 1 1 . 1 . Unreport Threat 12 | . . . . 3 . . . 1 5 . . 2 1 . . . Locate Traps 2 | . . . . . . . . . . . . . 1 . . 1 Reprogram Traps 1 | . . . . . . . . . . . . . 1 . . . Dispatch Records 2 | . . . . 1 . . . . . . . . 1 . . . Surveillance Status 1 | . . . . 1 . . . . . . . . . . . . Transport Status 2 | . 1 . . . . . . 1 . . . . . . . . Recall Investigation 1 | . . . . . . . . . . . . . 1 . . . Hauler Manifests 4 | . 2 . . 1 . . . . . . . 1 . . . . Registered Components 2 | . 1 . . . . . . . . . . . . . 1 . Registered Prototypes 1 | . . . . . . . . 1 . . . . . . . . Zone Layout 14 | . 3 2 . 2 1 . . 2 1 . . 1 1 . 1 . Fabricator Hacks 10 | . . . . . 2 . . . . . . . . . 4 4 Load Schematic 5 | . . . . . 1 . . . . . . . . . 2 2 Build 5 | . . . . . 1 . . . . . . . . . 2 2 Repair Station Hacks 12 | . . . . . . 4 . . 2 . . . 2 . 2 2 Scan Component 6 | . . . . . . 2 . . 1 . . . 1 . 1 1 Repair 6 | . . . . . . 2 . . 1 . . . 1 . 1 1 Recycling Unit Hacks 8 | . . 1 . 3 3 . . . . . . . 1 . . . Retrieve Matter 1 | . . . . . 1 . . . . . . . . . . . Retrieve Components 7 | . . 1 . 3 2 . . . . . . . 1 . . . Scanalyzer 4 | . . . . . . . . 4 . . . . . . . . Insert Component 2 | . . . . . . . . 2 . . . . . . . . Analyze 2 | . . . . . . . . 2 . . . . . . . . Garrison Access Hacks . | . . . . . . . . . . . . . . . . . Unauthorized Hacks 134 | . 23 9 . 7 9 . . 14 26 6 . 11 16 . 10 3 Terminals 40 | . 9 2 . 1 2 . . 5 9 3 . 3 5 . 1 . Track 11 | . 5 . . . . . . 1 2 1 . 1 1 . . . Botnet 28 | . 3 2 . 1 2 . . 4 7 2 . 2 4 . 1 . Operators 1 | . 1 . . . . . . . . . . . . . . . Fabricators 2 | . . . . . . . . . . . . . . . 1 1 Siphon 2 | . . . . . . . . . . . . . . . 1 1 Repair Stations . | . . . . . . . . . . . . . . . . . Recycling Units 7 | . 1 1 . 2 2 . . . . . . . 1 . . . Tunnel 7 | . 1 1 . 2 2 . . . . . . . 1 . . . Scanalyzers . | . . . . . . . . . . . . . . . . . Garrison Access 2 | . . . . . . . . . . . . 1 . . 1 . Jam 2 | . . . . . . . . . . . . 1 . . 1 . Data Cores Recovered . | . . . . . . . . . . . . . . . . . Used . | . . . . . . . . . . . . . . . . . Hacking Detections 92 | . 9 7 2 7 8 2 . 16 16 4 . 4 6 . 6 5 Full Trace Events 21 | . . 1 . 4 1 . . 6 6 . . . 2 . . 1 Feedback Events . | . . . . . . . . . . . . . . . . . Feedback Blocked . | . . . . . . . . . . . . . . . . . Robot Schematics Acquired 2 | . . . . . . . . . 1 . . . 1 . . . Robots Built 1 | . . . . . 1 . . . . . . . . . . . Matter 252 | . . . . . 252 . . . . . . . . . . . Time 67 | . . . . . 67 . . . . . . . . . . . Total Robot Build Rating 4 | . . . . . 4 . . . . . . . . . . . Part Schematics Acquired 7 | . . . . 1 . . . 4 . . . . 2 . . . Parts Built 5 | . . . . . . . . . . . . . . . 3 2 Matter 614 | . . . . . . . . . . . . . . . 380 234 Time 211 | . . . . . . . . . . . . . . . 153 58 Total Part Build Rating 31 | . . . . . . . . . . . . . . . 17 14 Parts Repaired 4 | . . . . . . 2 . . 1 . . . 1 . . . Time 234 | . . . . . . 41 . . 26 . . . 22 . 56 89 Parts Recycled . | . . . . . . . . . . . . . . . . . Recycled Matter . | . . . . . . . . . . . . . . . . . Retrieved Matter 193 | . . . . . 193 . . . . . . . . . . . Retrieved Components 44 | . . 9 . 15 13 . . . . . . . 7 . . . Parts Scanalyzed 2 | . . . . . . . . 2 . . . . . . . . Part Schematics Acquired 2 | . . . . . . . . 2 . . . . . . . . Parts Damaged . | . . . . . . . . . . . . . . . . . Bothacking | -11 -10 -9 -9 -9 -7 -6 -6 -6 -6 -6 -6 -6 -5 -5 -5 -4 ------------ Run | Scr Mat Mat Sto Rec Fac Fac Was Fac Ext Cet Arc Hub Fac Was Fac Fac Used RIF Installer . | . . . . . . . . . . . . . . . . . Robots Hacked 1 | . . . . . . . . . . 1 . . . . . . Non-combat . | . . . . . . . . . . . . . . . . . Combat 1 | . . . . . . . . . . 1 . . . . . . Robot Hacks Applied 1 | . . . . . . . . . . 1 . . . . . . parse_system 1 | . . . . . . . . . . 1 . . . . . . Relay Couplers Released 3 | . . . . . . . . 3 . . . . . . . . Programmers 3 | . . . . . . . . 3 . . . . . . . . Robots Rewired 16 | . . . . 5 . . . . 11 . . . . . . . Allies Hacked 2 | . . . . . 2 . . . . . . . . . . . Hacks Repelled . | . . . . . . . . . . . . . . . . . Allies | -11 -10 -9 -9 -9 -7 -6 -6 -6 -6 -6 -6 -6 -5 -5 -5 -4 -------- Run | Scr Mat Mat Sto Rec Fac Fac Was Fac Ext Cet Arc Hub Fac Was Fac Fac Total Allies 31 | . . . . 5 1 . . . 17 5 . . 3 . . . Largest Group 9 | . . . . 5 2 . . . 9 5 4 4 3 . . . Highest-Rated Group 492 | . . . . 105 45 . . . 268 492 376 376 94 . . . Highest-Rated Ally 156 | . . . . 24 37 . . . 156 116 94 94 94 . . . Total Orders 8 | . . . . . 3 . . . 3 . . . . . . 2 STAY 1 | . . . . . 1 . . . . . . . . . . . GOTO 2 | . . . . . 1 . . . 1 . . . . . . . FOLLOW 1 | . . . . . 1 . . . . . . . . . . . EXPLORE 4 | . . . . . . . . . 2 . . . . . . 2 Ally Attacks 344 | . . . . 38 4 . . . 142 63 12 60 25 . . . Total Damage 8930 | . . . . 549 102 . . . 2589 2337 470 2402 481 . . . Kills 56 | . . . . 11 1 . . . 16 12 3 12 1 . . . Allies Corrupted . | . . . . . . . . . . . . . . . . . Allies Melted 2 | . . . . . . . . . 1 1 . . . . . . Intel | -11 -10 -9 -9 -9 -7 -6 -6 -6 -6 -6 -6 -6 -5 -5 -5 -4 ------- Run | Scr Mat Mat Sto Rec Fac Fac Was Fac Ext Cet Arc Hub Fac Was Fac Fac Robot Analysis Total 5 | . 2 . 2 . . . . . 1 . . . . . . . Derelict Logs Recovered . | . . . . . . . . . . . . . . . . . Drone Launches 4 | . . . . . . . . . 2 . . . . . . 2 Drone Recoveries . | . . . . . . . . . . . . . . . . . Exploration | -11 -10 -9 -9 -9 -7 -6 -6 -6 -6 -6 -6 -6 -5 -5 -5 -4 ------------- Run | Scr Mat Mat Sto Rec Fac Fac Was Fac Ext Cet Arc Hub Fac Was Fac Fac Turns Passed 26888 | 95 1165 1688 453 1196 3920 357 364 3170 4407 851 1108 658 2531 238 1609 3078 Spaces Moved 13006 | 58 737 682 139 449 1909 235 259 1703 2241 412 239 342 1333 123 880 1265 Core 3 | 3 . . . . . . . . . . . . . . . . Treads 5686 | . 6 319 139 449 763 . . 127 1833 412 165 2 5 14 187 1265 Legs 341 | . . . . . . . . . 341 . . . . . . . Wheels 6976 | 55 731 363 . . 1146 235 259 1576 67 . 74 340 1328 109 693 . Hover . | . . . . . . . . . . . . . . . . . Flight . | . . . . . . . . . . . . . . . . . Fastest Speed 50 | 50 90 110 180 200 120 130 130 120 120 160 130 130 130 110 120 166 Average Speed 149 | 86 112 160 187 200 158 130 130 133 160 160 161 139 132 124 135 169 Slowest Speed 240 | 90 180 240 200 200 225 130 130 200 220 160 200 200 220 180 210 170 Overloaded Moves . | . . . . . . . . . . . . . . . . . Propulsion Burnouts . | . . . . . . . . . . . . . . . . . Robots Hopped . | . . . . . . . . . . . . . . . . . Cave-ins Triggered . | . . . . . . . . . . . . . . . . . Exploration Rate (%) 54 | 4 98 66 29 80 44 6 96 42 93 86 93 34 29 67 17 36 Regions Visited 16 Branch Regions 6 Pre-discovered Areas 7 | . 1 1 . 2 2 . . . . . . . 1 . . . Known Exits Taken 2 | . . . 1 . . . . 1 . . . . . . . . Unknown Exits Taken 10 | 1 1 1 . 1 1 . . . 1 1 1 1 . . 1 . Scrap Searched . | . . . . . . . . . . . . . . . . . Spaces Dug 41 | . 1 . . 1 2 . . 15 . . . . 3 1 11 7 Terrain Destroyed 710 | . 1 11 . 20 70 . . 38 72 . 3 167 188 2 70 68 Melee 29 | . . . . . . . . 14 . . . . . . 9 6 Projectile 213 | . 1 . . 1 62 . . 24 . . 3 10 50 2 13 47 AOE 468 | . . 11 . 19 8 . . . 72 . . 157 138 . 48 15 Actions | -11 -10 -9 -9 -9 -7 -6 -6 -6 -6 -6 -6 -6 -5 -5 -5 -4 --------- Run | Scr Mat Mat Sto Rec Fac Fac Was Fac Ext Cet Arc Hub Fac Was Fac Fac Total 17883 | 80 924 991 240 654 2391 287 293 2294 2794 542 943 444 1750 179 1156 1921 Wait 1928 | . 45 51 27 60 72 41 . 227 98 32 655 37 136 27 102 318 Move 12993 | 57 736 681 138 448 1909 235 258 1702 2240 411 238 341 1333 122 879 1265 Hop . | . . . . . . . . . . . . . . . . . Pick Up 260 | 6 18 24 5 2 44 3 15 29 36 6 7 3 18 1 17 26 Fast Attach 224 | 6 6 18 . . 23 1 2 28 41 13 7 5 20 6 22 26 Attach 127 | . 1 14 1 . 15 5 2 12 12 2 3 1 17 2 16 24 Detach 39 | . . 4 . . 4 . . 2 5 4 1 1 1 . 9 8 Swap 232 | . 14 11 5 4 23 1 2 24 32 23 7 5 26 1 16 38 Drop 364 | . 19 22 7 2 62 1 14 52 56 18 15 10 24 6 17 39 Fire 1409 | 11 85 165 56 43 214 . . 190 161 19 10 40 174 14 63 164 Melee 57 | . . . . . . . . 17 3 14 . . 1 . 15 7 Ram 5 | . . . . . 5 . . . . . . . . . . . Kick . | . . . . . . . . . . . . . . . . . Crush 42 | . . 1 1 6 20 . . 7 1 . . 1 . . . 5 Escape Stasis 6 | . . . . . . . . 4 2 . . . . . . . Rewire 195 | . . . . 89 . . . . 106 . . . . . . . Trap . | . . . . . . . . . . . . . . . . . Miscellaneous 2 | . . . . . . . . . 1 . . . . . . 1 Route ------- -11/Scrapyard -10/Materials (discovered 5 exits: *Mat x3 / *Min x2) -9/Materials (discovered 5 exits: [*Mat] / [*Min x2] / *Sto x2) -9/Storage -9/Recycling -7/Factory (discovered 3 exits: *Fac / Low x2) -6/Factory -6/Waste -6/Factory (discovered 6 exits: *Fac x2 / Low x2 / *Ext x2) -6/Extension (discovered 3 exits: *Fac x2 / *Cet) -6/Cetus -6/Archives (discovered 3 exits: *Fac / *Hub x2) -6/Hub_04(d) -5/Factory (discovered 4 exits: *Fac x2 / Upp x2) -5/Waste -5/Factory (discovered 3 exits: *Fac / *Upp x2) -4/Factory (discovered 4 exits: *Res x4) History --------- Turn | Location | Event 30 | -11/Scrapyard | Discovered new exit (range 16) 96 | -11/Scrapyard | Entered Materials 244 | -10/Materials | Discovered new exit (range 16) 314 | -10/Materials | Build established: Mutant 404 | -10/Materials | Identified exit to Mines 513 | -10/Materials | Discovered new exit (range 4) 952 | -10/Materials | Discovered new exit (range 5) 1074 | -10/Materials | Build established: Scavenger-Mutant 1101 | -10/Materials | Discovered new exit (range 14) 1261 | -10/Materials | Entered another Materials area 1261 | -9/Materials | Evolved 2 slots: Utility x2 1478 | -9/Materials | Lost 3 parts (1n2w) 1581 | -9/Materials | Build established: Hauler-Mutant 1841 | -9/Materials | Lost 3 parts (1n2w) 1872 | -9/Materials | Discovered new exit (range 16) 2017 | -9/Materials | Core integrity fell below 50% 2177 | -9/Materials | Discovered new exit (range 8) 2520 | -9/Materials | Discovered new exit (range 7) 2667 | -9/Materials | Lost 3 parts (1p1n1w) 2841 | -9/Materials | Discovered new exit (range 14) 2857 | -9/Materials | Discovered new exit (range 7) 2949 | -9/Materials | Entered Storage 3050 | -9/Storage | Core integrity fell below 20% 3170 | -9/Storage | Identified exit to Recycling 3394 | -9/Storage | Used back door to open Recycling access 3402 | -9/Storage | Entered Recycling 3435 | -9/Recycling | Spotter reported a threat 3458 | -9/Recycling | Spotter reported a threat 3553 | -9/Recycling | Spotter reported a threat 3554 | -9/Recycling | Spotter reported a threat 3558 | -9/Recycling | Spotter reported a threat 3575 | -9/Recycling | Spotter reported a threat 3607 | -9/Recycling | Spotter reported a threat 3610 | -9/Recycling | Spotter reported a threat 3617 | -9/Recycling | Spotter reported a threat 3624 | -9/Recycling | Spotter reported a threat 3636 | -9/Recycling | Spotter reported a threat 3667 | -9/Recycling | Spotter reported a threat 3673 | -9/Recycling | Spotter reported a threat 3728 | -9/Recycling | Spotter reported a threat 3745 | -9/Recycling | Spotter reported a threat 3748 | -9/Recycling | Spotter reported a threat 3770 | -9/Recycling | Spotter reported a threat 3778 | -9/Recycling | Spotter reported a threat 3809 | -9/Recycling | Spotter reported a threat 3831 | -9/Recycling | Spotter reported a threat 3893 | -9/Recycling | Spotter reported a threat 3906 | -9/Recycling | Spotter reported a threat 4008 | -9/Recycling | Spotter reported a threat 4076 | -9/Recycling | Spotter reported a threat 4112 | -9/Recycling | Spotter reported a threat 4232 | -9/Recycling | Spotter reported a threat 4267 | -9/Recycling | Spotter reported a threat 4322 | -9/Recycling | Spotter reported a threat 4349 | -9/Recycling | Spotter reported a threat 4350 | -9/Recycling | Spotter reported a threat 4364 | -9/Recycling | Spotter reported a threat 4395 | -9/Recycling | Spotter reported a threat 4404 | -9/Recycling | Discovered new exit (range 15) 4408 | -9/Recycling | Spotter reported a threat 4421 | -9/Recycling | Spotter reported a threat 4448 | -9/Recycling | Spotter reported a threat 4495 | -9/Recycling | Spotter reported a threat 4529 | -9/Recycling | Spotter reported a threat 4531 | -9/Recycling | Spotter reported a threat 4548 | -9/Recycling | Spotter reported a threat 4576 | -9/Recycling | Spotter reported a threat 4598 | -9/Recycling | Entered Factory 4598 | -7/Factory | Accompanied by 2 allies 4598 | -7/Factory | Evolved 4 slots: Propulsion x1, Utility x3 4906 | -7/Factory | Build established: Scavenger-Mutant 4998 | -7/Factory | First assault squad dispatched 5577 | -7/Factory | Build established: Hauler-Mutant 7503 | -7/Factory | Fabricated I-36 Angel? 7649 | -7/Factory | P-60 Hacker assimilated allied Angel 4a 8087 | -7/Factory | Identified exit to Lower Caves 8326 | -7/Factory | High security lockdown imminent 8406 | -7/Factory | High security lockdown engaged 8494 | -7/Factory | Discovered new exit (range 5) 8511 | -7/Factory | Core integrity fell below 50% 8518 | -7/Factory | Entered another Factory area 8518 | -6/Factory | Evolved 2 slots: Propulsion x1, Utility x1 8544 | -6/Factory | Lost 4 parts (1u3w) 8673 | -6/Factory | Repaired Arm. Huge Wheel 8812 | -6/Factory | Repaired Hrd. Medium Armor Plating 8875 | -6/Factory | Sucked down chute 8875 | -6/Factory | Entered Waste 8875 | -6/Waste | The area was eerily silent 8943 | -6/Waste | Found Quantum Capacitor 9192 | -6/Waste | Discovered new exit (range 12) 9239 | -6/Waste | Entered Factory 9336 | -6/Factory | Found Hvy. Insulated Plating 9450 | -6/Factory | Discovered new exit (range 21) 10250 | -6/Factory | Found Prototype Processor 10250 | -6/Factory | Identified Exp. Terrain Scan Processor 10253 | -6/Factory | Found Exp. Terrain Scan Processor 10578 | -6/Factory | Garrison activated, responded to threat 10741 | -6/Factory | Discovered new exit (range 22) 11628 | -6/Factory | Identified exit to Lower Caves 11628 | -6/Factory | Identified exit to Extension 12039 | -6/Factory | First assault squad dispatched 12409 | -6/Factory | Entered Extension 12502 | -6/Extension | Rescued a captive Derelict 12502 | -6/Extension | Rescued a captive Derelict 12512 | -6/Extension | Build established: Mutant 12759 | -6/Extension | First assault squad dispatched 12906 | -6/Extension | Build established: Commander-Mutant 12906 | -6/Extension | Rescued a captive Derelict 13466 | -6/Extension | Build established: Scavenger-Mutant 13659 | -6/Extension | Disrupted transfer network 13809 | -6/Extension | Spotted B-75 Beast 13853 | -6/Extension | Destroyed B-75 Beast 13876 | -6/Extension | Spotted B-75 Beast 13928 | -6/Extension | Destroyed B-75 Beast 14038 | -6/Extension | Lost 3 parts (2n1w) 14301 | -6/Extension | Core integrity fell below 50% 14335 | -6/Extension | Lost 3 parts (1n1u1w) 14979 | -6/Extension | Discovered new exit (range 3) 15056 | -6/Extension | Rescued a captive Derelict 15058 | -6/Extension | Rescued a captive Derelict 15067 | -6/Extension | Discovered new exit (range 95) 15068 | -6/Extension | Discovered new exit (range 96) 15188 | -6/Extension | Repaired Hcp. Storage Unit 15772 | -6/Extension | Rescued a captive Derelict 15842 | -6/Extension | Energy Cycler disabled 15845 | -6/Extension | Rescued A7 15846 | -6/Extension | Rescued a captive Derelict 16601 | -6/Extension | Found Prototype Protection 16816 | -6/Extension | Entered Cetus 16816 | -6/Cetus | Accompanied by 1 ally 16821 | -6/Cetus | Acquired a Cetus Manufacturing Module code from A7 16835 | -6/Cetus | Spotted Cetus Guard 16835 | -6/Cetus | Spotted Cetus Guard 16835 | -6/Cetus | Spotted Cetus Guard 16837 | -6/Cetus | Spotted Cetus Guard 16847 | -6/Cetus | Destroyed Cetus Guard 16847 | -6/Cetus | Destroyed Cetus Guard 16848 | -6/Cetus | Destroyed Cetus Guard 16855 | -6/Cetus | Destroyed Cetus Guard 16893 | -6/Cetus | Identified Med. Regenerative Plating 16977 | -6/Cetus | Started Cetus Manufacturing Module 17002 | -6/Cetus | Manufactured an Enhanced Grunt 17027 | -6/Cetus | Manufactured an Enhanced Grunt 17052 | -6/Cetus | Manufactured an Enhanced Grunt 17077 | -6/Cetus | Manufactured an Enhanced Grunt 17102 | -6/Cetus | Manufactured an Enhanced Grunt 17123 | -6/Cetus | Escorted A7 to Cetus Mainframe 17172 | -6/Cetus | Discovered new exit (range 21) 17368 | -6/Cetus | Destroyed A7 17378 | -6/Cetus | Extracted ID and sensor layout for unrecognized location from A7's data core 17612 | -6/Cetus | Found a strange terminal 17667 | -6/Cetus | Entered Archives 17667 | -6/Archives | Accompanied by 4 allies 17723 | -6/Archives | Discovered new exit (range 22) 17730 | -6/Archives | Discovered new exit (range 19) 17777 | -6/Archives | Discovered new exit (range 17) 17800 | -6/Archives | Unable to access archive contents 18775 | -6/Archives | Entered Hub_04(d) 18775 | -6/Hub_04(d) | Accompanied by 4 allies 18800 | -6/Hub_04(d) | Spotted B-75 Beast 18823 | -6/Hub_04(d) | Core integrity fell below 20% 18828 | -6/Hub_04(d) | Allies destroyed B-75 Beast 18853 | -6/Hub_04(d) | Discovered new exit (range 11) 19430 | -6/Hub_04(d) | Network Hub disabled 19433 | -6/Hub_04(d) | Entered Factory 19433 | -5/Factory | Accompanied by 1 ally 19433 | -5/Factory | Evolved 2 slots: Utility x2 19601 | -5/Factory | Identified exit to Upper Caves 19874 | -5/Factory | Discovered new exit (range 19) 20005 | -5/Factory | Repaired Arm. Huge Wheel 20933 | -5/Factory | First assault squad dispatched 21080 | -5/Factory | Lost 4 parts (1p1n2u) 21099 | -5/Factory | Destroyed 10 combat bots 21266 | -5/Factory | Lost 3 parts (1p1n1w) 21458 | -5/Factory | Allied Derelicts emerged from ambush trap array 21592 | -5/Factory | System corruption reached 10% 21678 | -5/Factory | Lost 3 parts (1p1u1w) 21956 | -5/Factory | Discovered new exit (range 18) 21964 | -5/Factory | Sucked down chute 21964 | -5/Factory | Entered Waste 21989 | -5/Waste | Spotted C-40 Crusher 22003 | -5/Waste | Destroyed C-40 Crusher 22006 | -5/Waste | Spotted C-40 Crusher 22048 | -5/Waste | Spotted C-40 Crusher 22068 | -5/Waste | Spotted C-40 Crusher 22074 | -5/Waste | Crushed by Compactor (1 part destroyed, 2 dropped) 22077 | -5/Waste | Crushed by Compactor (0 parts destroyed, 1 dropped) 22078 | -5/Waste | Spotted C-40 Crusher 22097 | -5/Waste | Crushed by Compactor (1 part destroyed) 22098 | -5/Waste | Crushed by Compactor (0 parts destroyed, 1 dropped) 22105 | -5/Waste | Crushed by Compactor (1 part destroyed) 22107 | -5/Waste | Crushed by Compactor (1 part destroyed) 22128 | -5/Waste | Spotted C-40 Crusher 22138 | -5/Waste | Lost 6 parts (1n5u) 22174 | -5/Waste | Discovered new exit (range 22) 22202 | -5/Waste | Entered Factory 22502 | -5/Factory | First assault squad dispatched 22604 | -5/Factory | Build established: Hacker-Mutant 22913 | -5/Factory | Fabricated Adv. Targeting Computer (x1) 23134 | -5/Factory | Core integrity fell below 50% 23338 | -5/Factory | Discovered new exit (range 18) 23438 | -5/Factory | Fabricated Hvy. Siege Treads? 23811 | -5/Factory | Entered another Factory area 23811 | -4/Factory | Evolved 2 slots: Utility x2 24348 | -4/Factory | Build established: Hauler-Mutant 24567 | -4/Factory | Identified exit to Research 25624 | -4/Factory | System corruption reached 10% 25941 | -4/Factory | Fabricated Hvy. Siege Treads (x2) 26000 | -4/Factory | Lost 6 parts (1p1n2u2w) 26046 | -4/Factory | Build established: Scavenger-Mutant 26228 | -4/Factory | Local fabrication network quarantined 26311 | -4/Factory | First assault squad dispatched 26510 | -4/Factory | Spotted B-86 Titan 26596 | -4/Factory | Spotted B-86 Titan 26889 | -4/Factory | Self-destructed Last Messages --------------- 26865_ K-01 Serf collects debris. 26866_ System corrupted: Component data lost. 26867_ Antimatter Reactor destroyed. 26868_ U-05 Engineer builds a Wall. 26869_ Ended siege mode. 26869_ K-01 Serf collects debris. 26872_ Slammed into G-67 Veteran. 26875_ Acquired 77 matter. 26878_ K-01 Serf collects debris. 26878_ Hvy. Siege Treads destroyed. 26880_ Penetrated by Slug. 26882_ Slammed into G-67 Veteran. 26883_ System corrupted: Component data lost. 26883_ Slammed into G-67 Veteran. 26884_ U-05 Engineer builds a Wall. 26885_ Slammed into G-67 Veteran. 26887_ HERF Cannon destroyed. 26888_ G-67 Veteran IFF system glitched. 26889_ Penetrated by Slug. [Achievement: Punisher] Map ----- +----------------------------------------------------+ | ?????????????????????????????????????????????????? | | ?????????????????????????????????????????????????? | | ?????????????????????????????????????????????????? | | ?????????????????????????????????????????????????? | | ?????????????????????????????????????????????????? | | ?????????????????????????????????????????????????? | | ?????????????? ??????????????????????????????????? | | ????????????? ??????????????????????????????????? | | ????????????? ??????????????????????????????????? | | ????????????? ?????????????????????????????????? | | ?? ??? ??" """ ?????????????????????????????????? | | ?? ??? ??" """ ?????????###?????????????????????? | | ?? ??? """ """ ?????????# +?????????????????????? | | ?? ??? ?????????# #?????????????????????? | | ?? ??? """ """ #????????# #?????????????????????? | | "" "?" """ """ #????????# #?????????????????????? | | "" "?" """ """ #????????# #?????????????????????? | | ? #????##### ###???????????????????? | | "" "?" """ """ ######## #???????????????????? | | "" """ """ """ ### #???????????????? | | "" """ """ """ #???????????????? | | %[ ### #???????????????? | | "" """ """ """ ##### #???????????????????? | | "" """ """ """ ####g##Y###???????????????????? | | "" """ """ """ #% !!gg #????????????????????? | | ## @""#????????????????????? | | "" """ """ """ ## """ ""#????????????????????? | | "" """ """ """ ## """ ""#????????????????????? | | "" """ """ """ ## """ T#????????????????????? | | ## ""#????????????????????? | | ## """ ""#????????????????????? | | # ## """ ""#????????????????????? | | # ## """ #????????????????????? | | # ## ==#????????????????????? | | ############ ## ? =!#????????????????????? | | ####???????# ##??######????????????????????? | | ?? #?????????????????????????????? | | ? #?????????????????????????????? | | #?????????????????????????????? | | "" #?????????????????????????????? | | Y" ? #?????????????????????????????? | | "" ### #?????????????????????????????? | | ""# #?????????????????????????????? | | ""# #?????????????????????????????? | | T"# #?????????????????????????????? | | ""# #?????????????????????????????? | | !!!""## ?????????????????????????????? | | !!!##??? ?????????????????????????????? | | !!!#?????? ??????????????????????????????? | | #????????????????????????????????????????????? | +----------------------------------------------------+ Best States ------------- Heat Dissipation 90 Energy Generation 25 Energy Capacity 950 Matter Stores 300 Matter Capacity 300 Sight Range 22 Terrain Scan Range 20 Terrain Scan Density 210 ECM Strength 3 Jamming Range 16 Power Amplification 30 EM Shielding 2 Armor Coverage 1350 Resistance: EM 30 Core Shielding 20 Weapon Shielding 66 Weapon Cycling 15 Evasion (%) 44 Targeting Accuracy 8 Target Analysis 6 Core Analysis 8 Recoil Reduction 4 Particle Charging 25 Offensive Hacking 26 Defensive Hacking 14 Item Schematics ----------------- Adv. Targeting Computer | -9/Recycling | Hacked Hvy. Treads | -6/Factory | Scanalyzed Plasma Lance | -6/Factory | Scanalyzed Hvy. Siege Treads | -6/Factory | Hacked Imp. Core Analyzer | -6/Factory | Hacked Hvy. Shock Bomb Launcher | -5/Factory | Hacked Imp. Weapon Cycler | -5/Factory | Hacked Robot Schematics ------------------ H-55 Commando | -6/Extension | Hacked I-36 Angel | -5/Factory | Hacked Fabricated ------------ I-36 Angel | x1 | -7/Factory | Preloaded Adv. Targeting Computer | x1 | -5/Factory Hvy. Siege Treads | x2 | -5/Factory Hvy. Siege Treads | x2 | -4/Factory Alien Tech Used ----------------- None Achievements -------------- Punisher Challenges ------------ None Game ------ Seed StasisPropulsionInitializer Manual? 0 Play Time 04:32:48 Cumulative 227.9 hours Start 2019.10.22 @ 22:55:59 End 2019.10.23 @ 03:55:48 Sessions 3 Manual Loads 0 Difficulty Rogue Special Mode None Game No. 184 Rogue 184 Adventurer 0 Explorer 0 Win Type - Total 3 Types 3/0/0/0/0/0/0 Lore% 73 Gallery% 75 Achievement% 51 Wizard Run 0 Options --------- ASCII 0 Keyboard 0 Movement Mouse Keybinds 0 Fullscreen 2 Font 24/Smallcaps Map View 76x50 Tactical HUD 1 Map Filters NONE Filters NONE Steam 1 RUN: 3459b84b-ab67-4c1e-86f9-c325a63a8b3e